[Event "Late-Titled-Tuesday-Blitz-October-10-2023"]
[Site "Chess.com"]
[Date "2023.10.10"]
[Round "7"]
[White "Bauman_Guy"]
[Black "Roberz12"]
[Result "1-0"]
[WhiteElo "2861"]
[BlackElo "2482"]
[TimeControl "180+1"]
[EndTime "15:12:34 PDT"]
[Termination "Bauman_Guy won on time"]

1. e4 {[%clk 0:03:00.9]} 1... c5 {[%clk 0:02:54.4]} 2. Nf3 {[%clk 0:03:00.9]}
2... Nc6 {[%clk 0:02:55.1]} 3. d4 {[%clk 0:03:01.1]} 3... cxd4 {[%clk 0:02:56]}
4. Nxd4 {[%clk 0:03:02]} 4... g6 {[%clk 0:02:56.5]} 5. c4 {[%clk 0:03:02]} 5...
Nf6 {[%clk 0:02:56.6]} 6. Nc3 {[%clk 0:03:01.7]} 6... d6 {[%clk 0:02:57.2]} 7.
Be2 {[%clk 0:03:01]} 7... Bg7 {[%clk 0:02:54]} 8. Be3 {[%clk 0:02:59.3]} 8...
O-O {[%clk 0:02:54.6]} 9. O-O {[%clk 0:02:58]} 9... Bd7 {[%clk 0:02:53.6]} 10.
f3 {[%clk 0:02:58.1]} 10... Nxd4 {[%clk 0:02:52.7]} 11. Bxd4 {[%clk 0:02:59]}
11... a5 {[%clk 0:02:53]} 12. b3 {[%clk 0:02:58.9]} 12... Bc6 {[%clk 0:02:53.4]}
13. Qd2 {[%clk 0:02:59.2]} 13... Nd7 {[%clk 0:02:53.7]} 14. Bf2 {[%clk
0:02:59.8]} 14... Nc5 {[%clk 0:02:35.5]} 15. Rab1 {[%clk 0:02:58.9]} 15... h5
{[%clk 0:02:19.4]} 16. Rfe1 {[%clk 0:02:56.5]} 16... Kh7 {[%clk 0:02:19]} 17.
Bf1 {[%clk 0:02:55.3]} 17... Qc7 {[%clk 0:02:18.6]} 18. e5 {[%clk 0:02:53.5]}
18... Rad8 {[%clk 0:01:49.3]} 19. Qc2 {[%clk 0:02:52.7]} 19... Ne6 {[%clk
0:01:46.8]} 20. exd6 {[%clk 0:02:49.1]} 20... Rxd6 {[%clk 0:01:46.6]} 21. c5
{[%clk 0:02:45.4]} 21... Rdd8 {[%clk 0:01:44.8]} 22. Bc4 {[%clk 0:02:44.9]}
22... Nd4 {[%clk 0:01:42.8]} 23. Qc1 {[%clk 0:02:43.9]} 23... e5 {[%clk
0:01:42.9]} 24. Ne4 {[%clk 0:02:38]} 24... Bxe4 {[%clk 0:01:42.1]} 25. Rxe4
{[%clk 0:02:37.6]} 25... Qxc5 {[%clk 0:01:39.4]} 26. Bf1 {[%clk 0:02:37.2]}
26... Qxc1 {[%clk 0:01:37.9]} 27. Rxc1 {[%clk 0:02:38.1]} 27... Rc8 {[%clk
0:01:38.3]} 28. Ree1 {[%clk 0:02:37.3]} 28... f5 {[%clk 0:01:15.6]} 29. h4
{[%clk 0:02:36.2]} 29... Nc6 {[%clk 0:01:03.3]} 30. Red1 {[%clk 0:02:33.7]}
30... Rfd8 {[%clk 0:01:03.5]} 31. Bc4 {[%clk 0:02:31.8]} 31... Nd4 {[%clk
0:01:01.2]} 32. Kf1 {[%clk 0:02:26.3]} 32... Bh6 {[%clk 0:00:59.8]} 33. Rb1
{[%clk 0:02:24]} 33... Nc2 {[%clk 0:00:59.4]} 34. Be6 {[%clk 0:02:19.5]} 34...
Ra8 {[%clk 0:00:49]} 35. Kg1 {[%clk 0:02:11.8]} 35... Be3 {[%clk 0:00:44.7]} 36.
Bd5 {[%clk 0:02:04.1]} 36... Bxf2+ {[%clk 0:00:38.8]} 37. Kxf2 {[%clk 0:02:05]}
37... Rab8 {[%clk 0:00:36.2]} 38. Bc4 {[%clk 0:01:50.1]} 38... b5 {[%clk
0:00:31.3]} 39. Bf1 {[%clk 0:01:40.9]} 39... Nd4 {[%clk 0:00:20.6]} 40. Rbc1
{[%clk 0:01:40.9]} 40... Rbc8 {[%clk 0:00:21.2]} 41. Re1 {[%clk 0:01:40.3]}
41... Rxc1 {[%clk 0:00:11.7]} 42. Rxc1 {[%clk 0:01:41.2]} 42... Kg7 {[%clk
0:00:10.3]} 43. Rc5 {[%clk 0:01:41]} 43... a4 {[%clk 0:00:09.7]} 44. b4 {[%clk
0:01:39]} 44... Kf6 {[%clk 0:00:08.7]} 45. a3 {[%clk 0:01:38.4]} 45... g5 {[%clk
0:00:06.5]} 46. hxg5+ {[%clk 0:01:38.1]} 46... Kxg5 {[%clk 0:00:07.4]} 47. Rxe5
{[%clk 0:01:38.2]} 47... Nc2 {[%clk 0:00:07.5]} 48. Rxb5 {[%clk 0:01:35.9]}
48... Nxa3 {[%clk 0:00:07.1]} 49. Ra5 {[%clk 0:01:34.7]} 49... Nc2 {[%clk
0:00:07.7]} 50. Rxa4 {[%clk 0:01:26.7]} 50... Rd4 {[%clk 0:00:05.9]} 51. Ra5
{[%clk 0:01:17]} 51... Nxb4 {[%clk 0:00:05.8]} 52. Rc5 {[%clk 0:01:14.1]} 52...
Rd2+ {[%clk 0:00:04.5]} 53. Kg3 {[%clk 0:01:12.2]} 53... h4+ {[%clk 0:00:04.2]}
54. Kh2 {[%clk 0:01:11.5]} 54... Rf2 {[%clk 0:00:04.4]} 55. Bb5 {[%clk
0:01:08.7]} 55... Nc2 {[%clk 0:00:04.3]} 56. Kg1 {[%clk 0:01:08.3]} 56... Rd2
{[%clk 0:00:03.1]} 57. Re5 {[%clk 0:00:49.8]} 57... Kf4 {[%clk 0:00:02.1]} 58.
Re8 {[%clk 0:00:49.5]} 58... Ne3 {[%clk 0:00:02]} 59. Rg8 {[%clk 0:00:50]} 1-0

[Event "Late-Titled-Tuesday-Blitz-October-10-2023"]
[Site "Chess.com"]
[Date "2023.10.10"]
[Round "7"]
[White "Iball95"]
[Black "NelsonLinda"]
[Result "1-0"]
[WhiteElo "2837"]
[BlackElo "2585"]
[TimeControl "180+1"]
[EndTime "15:12:37 PDT"]
[Termination "Iball95 won by resignation"]

1. e4 {[%clk 0:02:59.9]} 1... c5 {[%clk 0:02:53.7]} 2. Nf3 {[%clk 0:03:00.1]}
2... e6 {[%clk 0:02:50.2]} 3. Nc3 {[%clk 0:03:00.6]} 3... d6 {[%clk 0:02:49.9]}
4. d4 {[%clk 0:03:00.1]} 4... cxd4 {[%clk 0:02:50.8]} 5. Qxd4 {[%clk 0:03:01]}
5... Nc6 {[%clk 0:02:47.4]} 6. Bb5 {[%clk 0:03:01.4]} 6... Bd7 {[%clk
0:02:44.2]} 7. Bxc6 {[%clk 0:03:01.5]} 7... bxc6 {[%clk 0:02:36.2]} 8. O-O
{[%clk 0:02:54]} 8... e5 {[%clk 0:02:36.5]} 9. Qd3 {[%clk 0:02:53.5]} 9... Nf6
{[%clk 0:02:36.9]} 10. Nd2 {[%clk 0:02:54]} 10... Be6 {[%clk 0:02:22.9]} 11. Rd1
{[%clk 0:02:53.3]} 11... Qc7 {[%clk 0:02:15.6]} 12. Nc4 {[%clk 0:02:41.5]} 12...
Rd8 {[%clk 0:02:15.8]} 13. Bg5 {[%clk 0:02:41.8]} 13... Be7 {[%clk 0:02:11.2]}
14. Bxf6 {[%clk 0:02:41.1]} 14... Bxf6 {[%clk 0:01:51]} 15. b3 {[%clk 0:02:15]}
15... Be7 {[%clk 0:01:50.1]} 16. Qg3 {[%clk 0:02:10.9]} 16... O-O {[%clk
0:01:49.2]} 17. Ne3 {[%clk 0:02:10.8]} 17... Kh8 {[%clk 0:01:33.1]} 18. Rd3
{[%clk 0:02:00.8]} 18... f5 {[%clk 0:01:29.2]} 19. Nxf5 {[%clk 0:01:57.6]} 19...
Bxf5 {[%clk 0:01:30.1]} 20. exf5 {[%clk 0:01:58.4]} 20... Rxf5 {[%clk 0:01:31]}
21. Rad1 {[%clk 0:01:54.7]} 21... d5 {[%clk 0:01:28.2]} 22. f3 {[%clk
0:01:53.4]} 22... Rdf8 {[%clk 0:01:25.4]} 23. Kh1 {[%clk 0:01:51.2]} 23... Rf4
{[%clk 0:01:21.8]} 24. Ne2 {[%clk 0:01:47.3]} 24... Bh4 {[%clk 0:00:47.5]} 25.
Qh3 {[%clk 0:01:47.1]} 25... Qe7 {[%clk 0:00:31.9]} 26. Nxf4 {[%clk 0:01:47]}
26... exf4 {[%clk 0:00:32.8]} 27. c4 {[%clk 0:01:34.4]} 27... Re8 {[%clk
0:00:32.1]} 28. g3 {[%clk 0:01:31]} 28... fxg3 {[%clk 0:00:29.5]} 29. hxg3
{[%clk 0:01:31.9]} 29... Bf6 {[%clk 0:00:27.9]} 30. cxd5 {[%clk 0:01:32.4]}
30... cxd5 {[%clk 0:00:27.3]} 31. Rxd5 {[%clk 0:01:33]} 31... Qe3 {[%clk
0:00:21.8]} 32. Qf5 {[%clk 0:01:28.2]} 32... Qh6+ {[%clk 0:00:19.8]} 33. Kg1
{[%clk 0:01:25.6]} 33... Qe3+ {[%clk 0:00:18]} 34. Kf1 {[%clk 0:01:25.1]} 34...
h6 {[%clk 0:00:15.7]} 35. R5d3 {[%clk 0:01:16]} 35... Qe2+ {[%clk 0:00:15.6]}
36. Kg1 {[%clk 0:01:16.1]} 36... Qxa2 {[%clk 0:00:11.1]} 37. Qb5 {[%clk
0:01:08.1]} 37... Qe2 {[%clk 0:00:09.2]} 38. Qc4 {[%clk 0:01:02]} 38... Re7
{[%clk 0:00:05.9]} 39. Rd8+ {[%clk 0:01:00.9]} 39... Kh7 {[%clk 0:00:05.6]} 40.
Qxe2 {[%clk 0:00:54.1]} 40... Rxe2 {[%clk 0:00:06.5]} 41. R8d2 {[%clk
0:00:52.5]} 41... Re3 {[%clk 0:00:06.7]} 42. Rd3 {[%clk 0:00:52.7]} 42... Re2
{[%clk 0:00:07.2]} 43. R1d2 {[%clk 0:00:52.8]} 43... Re1+ {[%clk 0:00:05.5]} 44.
Kf2 {[%clk 0:00:53.1]} 44... Rb1 {[%clk 0:00:06.1]} 45. Kg2 {[%clk 0:00:53.4]}
45... Ra1 {[%clk 0:00:05.7]} 46. Re2 {[%clk 0:00:53.9]} 46... Ra3 {[%clk
0:00:05]} 47. f4 {[%clk 0:00:53.8]} 47... h5 {[%clk 0:00:04.4]} 48. Re4 {[%clk
0:00:53.9]} 48... Kg6 {[%clk 0:00:04.6]} 49. Ra4 {[%clk 0:00:54]} 49... Rxa4
{[%clk 0:00:04.8]} 50. bxa4 {[%clk 0:00:54.9]} 50... Be7 {[%clk 0:00:04.3]} 51.
Rd5 {[%clk 0:00:53.9]} 51... Kh6 {[%clk 0:00:03.1]} 52. Ra5 {[%clk 0:00:53.5]}
1-0

[Event "Late-Titled-Tuesday-Blitz-October-10-2023"]
[Site "Chess.com"]
[Date "2023.10.10"]
[Round "7"]
[White "Chesstrainer1"]
[Black "Walter_White_Poland"]
[Result "1-0"]
[WhiteElo "2487"]
[BlackElo "2331"]
[TimeControl "180+1"]
[EndTime "15:12:37 PDT"]
[Termination "Chesstrainer1 won on time"]

1. e4 {[%clk 0:02:56.9]} 1... e5 {[%clk 0:02:59.1]} 2. Nf3 {[%clk 0:02:56.4]}
2... Nc6 {[%clk 0:02:59.1]} 3. d4 {[%clk 0:02:54.4]} 3... exd4 {[%clk
0:02:58.6]} 4. Bc4 {[%clk 0:02:55]} 4... Nf6 {[%clk 0:02:58.1]} 5. e5 {[%clk
0:02:55.2]} 5... Ne4 {[%clk 0:02:57.9]} 6. Qe2 {[%clk 0:02:53.1]} 6... Nc5
{[%clk 0:02:56.4]} 7. O-O {[%clk 0:02:53]} 7... Be7 {[%clk 0:02:52.5]} 8. Rd1
{[%clk 0:02:52.2]} 8... d5 {[%clk 0:02:43.2]} 9. exd6 {[%clk 0:02:45.5]} 9...
Qxd6 {[%clk 0:02:41.2]} 10. b4 {[%clk 0:02:44.3]} 10... Ne6 {[%clk 0:01:44.1]}
11. b5 {[%clk 0:02:42.6]} 11... Ncd8 {[%clk 0:01:38.5]} 12. Ba3 {[%clk 0:02:35]}
12... Qd7 {[%clk 0:01:38.2]} 13. Ne5 {[%clk 0:02:32.7]} 13... Bxa3 {[%clk
0:01:27.6]} 14. Nxd7 {[%clk 0:02:31.5]} 14... Bb2 {[%clk 0:01:27.2]} 15. Nc5
{[%clk 0:02:12.5]} 15... Bxa1 {[%clk 0:01:20.7]} 16. Nd2 {[%clk 0:02:03.4]}
16... Bb2 {[%clk 0:01:18.1]} 17. Bxe6 {[%clk 0:01:31.9]} 17... Nxe6 {[%clk
0:01:16.2]} 18. Nc4 {[%clk 0:01:32.3]} 18... Bc3 {[%clk 0:01:10.4]} 19. Ne4
{[%clk 0:01:29]} 19... Bb4 {[%clk 0:00:54.2]} 20. Rd3 {[%clk 0:01:21.7]} 20...
O-O {[%clk 0:00:51.1]} 21. Rg3 {[%clk 0:01:17.8]} 21... f5 {[%clk 0:00:47.4]}
22. Ng5 {[%clk 0:01:13.3]} 22... Nxg5 {[%clk 0:00:36.9]} 23. Rxg5 {[%clk
0:01:12.7]} 23... Bd7 {[%clk 0:00:35.4]} 24. Qe5 {[%clk 0:01:06.2]} 24... Rf7
{[%clk 0:00:27.1]} 25. Qxd4 {[%clk 0:01:01]} 25... Re8 {[%clk 0:00:19.3]} 26.
Ne5 {[%clk 0:00:40.1]} 26... Rxe5 {[%clk 0:00:18.6]} 27. Qxe5 {[%clk 0:00:38.7]}
27... Re7 {[%clk 0:00:18.5]} 28. Qd5+ {[%clk 0:00:35]} 28... Be6 {[%clk
0:00:15.4]} 29. Qd4 {[%clk 0:00:29]} 29... Rd7 {[%clk 0:00:11.9]} 30. Rxg7+
{[%clk 0:00:28.3]} 30... Rxg7 {[%clk 0:00:11.1]} 31. Qxb4 {[%clk 0:00:28.5]}
31... Rd7 {[%clk 0:00:09.7]} 32. h4 {[%clk 0:00:26.3]} 32... Kf7 {[%clk
0:00:09.7]} 33. h5 {[%clk 0:00:23.3]} 33... h6 {[%clk 0:00:08.7]} 34. Qf4 {[%clk
0:00:20.2]} 34... Rd1+ {[%clk 0:00:08.5]} 35. Kh2 {[%clk 0:00:19.7]} 35... Kg7
{[%clk 0:00:07.5]} 36. Qg3+ {[%clk 0:00:18.4]} 36... Kf8 {[%clk 0:00:06.7]} 37.
Qxc7 {[%clk 0:00:18.1]} 37... Rd7 {[%clk 0:00:06]} 38. Qb8+ {[%clk 0:00:17.2]}
38... Ke7 {[%clk 0:00:05.9]} 39. Qxa7 {[%clk 0:00:17.2]} 39... Kf6 {[%clk
0:00:06.6]} 40. Qe3 {[%clk 0:00:16.9]} 40... Rd5 {[%clk 0:00:02.9]} 41. Qxh6+
{[%clk 0:00:16.8]} 41... Ke5 {[%clk 0:00:03.4]} 42. Qg7+ {[%clk 0:00:16.8]}
42... Ke4 {[%clk 0:00:03.3]} 43. h6 {[%clk 0:00:17.3]} 43... f4 {[%clk
0:00:02.8]} 44. Qg6+ {[%clk 0:00:17.2]} 44... Bf5 {[%clk 0:00:02.4]} 45. Qe8+
{[%clk 0:00:17.2]} 45... Re5 {[%clk 0:00:01.7]} 46. Qf7 {[%clk 0:00:17]} 1-0

[Event "Late-Titled-Tuesday-Blitz-October-10-2023"]
[Site "Chess.com"]
[Date "2023.10.10"]
[Round "7"]
[White "NotFischer"]
[Black "venturov"]
[Result "0-1"]
[WhiteElo "2276"]
[BlackElo "2435"]
[TimeControl "180+1"]
[EndTime "15:12:43 PDT"]
[Termination "venturov won by resignation"]

1. b4 {[%clk 0:03:00.9]} 1... a5 {[%clk 0:02:57.9]} 2. b5 {[%clk 0:03:00.3]}
2... c6 {[%clk 0:02:57.2]} 3. c4 {[%clk 0:02:58.1]} 3... d5 {[%clk 0:02:56.7]}
4. e3 {[%clk 0:02:57.1]} 4... e5 {[%clk 0:02:54.6]} 5. Bb2 {[%clk 0:02:55.2]}
5... Bd6 {[%clk 0:02:53.3]} 6. Nf3 {[%clk 0:02:53.7]} 6... Qe7 {[%clk
0:02:45.9]} 7. cxd5 {[%clk 0:02:53.3]} 7... cxd5 {[%clk 0:02:45]} 8. Qb3 {[%clk
0:02:52.3]} 8... Nf6 {[%clk 0:02:41.5]} 9. Nc3 {[%clk 0:02:52.4]} 9... Be6
{[%clk 0:02:23.5]} 10. d4 {[%clk 0:02:51.7]} 10... e4 {[%clk 0:02:19.8]} 11. Ne5
{[%clk 0:02:39.7]} 11... O-O {[%clk 0:02:16.8]} 12. Be2 {[%clk 0:02:34.4]} 12...
Nbd7 {[%clk 0:02:10]} 13. Nxd7 {[%clk 0:02:28.1]} 13... Qxd7 {[%clk 0:01:59]}
14. O-O {[%clk 0:02:28.2]} 14... Rad8 {[%clk 0:01:43]} 15. Na4 {[%clk
0:02:20.2]} 15... Bg4 {[%clk 0:01:32.3]} 16. Qd1 {[%clk 0:02:09.5]} 16... Qf5
{[%clk 0:01:24.4]} 17. f4 {[%clk 0:01:24.8]} 17... exf3 {[%clk 0:01:15.1]} 18.
Bxf3 {[%clk 0:01:19.7]} 18... Qg5 {[%clk 0:01:02.4]} 19. Bc1 {[%clk 0:01:05.1]}
19... Qh4 {[%clk 0:00:56.4]} 20. g3 {[%clk 0:00:22.3]} 20... Qh5 {[%clk
0:00:34.2]} 21. Bxg4 {[%clk 0:00:18.9]} 21... Nxg4 {[%clk 0:00:32.9]} 22. Qe2
{[%clk 0:00:17.5]} 22... Rfe8 {[%clk 0:00:28.6]} 23. Nc3 {[%clk 0:00:13.5]}
23... Qg5 {[%clk 0:00:22.2]} 24. Nxd5 {[%clk 0:00:12.5]} 24... Nxh2 {[%clk
0:00:17.1]} 25. Qxh2 {[%clk 0:00:10.2]} 25... Qxd5 {[%clk 0:00:17]} 26. Qg2
{[%clk 0:00:09.9]} 26... Qxb5 {[%clk 0:00:13.9]} 27. Bd2 {[%clk 0:00:10.3]}
27... Qg5 {[%clk 0:00:11.8]} 28. e4 {[%clk 0:00:09.4]} 28... Qg4 {[%clk
0:00:11.7]} 29. e5 {[%clk 0:00:09.1]} 29... Bb4 {[%clk 0:00:11.3]} 30. Be3
{[%clk 0:00:08.1]} 30... Bc3 {[%clk 0:00:09.1]} 31. Rad1 {[%clk 0:00:07.3]}
31... b5 {[%clk 0:00:07.5]} 32. Qf2 {[%clk 0:00:07.7]} 32... f6 {[%clk
0:00:06.3]} 33. exf6 {[%clk 0:00:07.1]} 33... gxf6 {[%clk 0:00:06.8]} 34. Qxf6
{[%clk 0:00:04.9]} 34... Qxg3+ {[%clk 0:00:07.2]} 35. Kh1 {[%clk 0:00:04.4]}
35... Qh3+ {[%clk 0:00:07.6]} 36. Kg1 {[%clk 0:00:04.7]} 36... Qxe3+ {[%clk
0:00:08]} 37. Kh1 {[%clk 0:00:05]} 37... Qh3+ {[%clk 0:00:07.8]} 38. Kg1 {[%clk
0:00:05.3]} 38... Qg4+ {[%clk 0:00:06.6]} 39. Kh1 {[%clk 0:00:05.3]} 39... Qh5+
{[%clk 0:00:05.3]} 40. Kg1 {[%clk 0:00:05.5]} 40... Qg6+ {[%clk 0:00:05.4]} 41.
Qxg6+ {[%clk 0:00:06]} 41... hxg6 {[%clk 0:00:06.3]} 42. Rf6 {[%clk 0:00:05.7]}
42... Bxd4+ {[%clk 0:00:05.8]} 43. Rxd4 {[%clk 0:00:04.9]} 43... Rxd4 {[%clk
0:00:06.7]} 44. Rxg6+ {[%clk 0:00:05.8]} 44... Kf7 {[%clk 0:00:07.4]} 45. Rb6
{[%clk 0:00:06.4]} 45... Rb4 {[%clk 0:00:07.5]} 46. Ra6 {[%clk 0:00:05.3]} 46...
a4 {[%clk 0:00:08.1]} 47. Ra7+ {[%clk 0:00:05.7]} 47... Re7 {[%clk 0:00:08.1]}
48. Ra6 {[%clk 0:00:06.1]} 48... Rb2 {[%clk 0:00:08.3]} 0-1

[Event "Late-Titled-Tuesday-Blitz-October-10-2023"]
[Site "Chess.com"]
[Date "2023.10.10"]
[Round "7"]
[White "Qvalda"]
[Black "jaskol95"]
[Result "0-1"]
[WhiteElo "2396"]
[BlackElo "2576"]
[TimeControl "180+1"]
[EndTime "15:12:46 PDT"]
[Termination "jaskol95 won by resignation"]

1. Nf3 {[%clk 0:03:00.9]} 1... d5 {[%clk 0:02:59.9]} 2. g3 {[%clk 0:02:53.9]}
2... Nd7 {[%clk 0:02:56.7]} 3. d4 {[%clk 0:02:52.7]} 3... Nb6 {[%clk 0:02:57]}
4. Bg2 {[%clk 0:02:51.5]} 4... Bf5 {[%clk 0:02:57.1]} 5. O-O {[%clk 0:02:48.5]}
5... c6 {[%clk 0:02:56.6]} 6. Nc3 {[%clk 0:02:46.5]} 6... Nf6 {[%clk 0:02:54.8]}
7. Nh4 {[%clk 0:02:44.6]} 7... Bg6 {[%clk 0:02:53.4]} 8. Re1 {[%clk 0:02:43]}
8... e6 {[%clk 0:02:52.9]} 9. Nxg6 {[%clk 0:02:39.3]} 9... hxg6 {[%clk
0:02:52.7]} 10. e4 {[%clk 0:02:39.9]} 10... Be7 {[%clk 0:02:45.4]} 11. Bg5
{[%clk 0:02:30.7]} 11... dxe4 {[%clk 0:02:37.3]} 12. Nxe4 {[%clk 0:01:58.7]}
12... Nxe4 {[%clk 0:02:35]} 13. Bxe7 {[%clk 0:01:53.1]} 13... Qxe7 {[%clk
0:02:35.9]} 14. Bxe4 {[%clk 0:01:44.7]} 14... O-O-O {[%clk 0:02:35.9]} 15. a4
{[%clk 0:01:41.6]} 15... Qf6 {[%clk 0:02:22]} 16. a5 {[%clk 0:01:37.6]} 16...
Rxd4 {[%clk 0:01:48.9]} 17. Qe2 {[%clk 0:01:24.6]} 17... Nc4 {[%clk 0:01:23.9]}
18. c3 {[%clk 0:01:08]} 18... Rd2 {[%clk 0:01:21.6]} 19. Qf1 {[%clk 0:00:37.2]}
19... Ne5 {[%clk 0:00:44.5]} 20. a6 {[%clk 0:00:32.7]} 20... b6 {[%clk
0:00:42.6]} 21. Re2 {[%clk 0:00:25.3]} 21... Rxe2 {[%clk 0:00:23.9]} 22. Qxe2
{[%clk 0:00:26.2]} 22... g5 {[%clk 0:00:17.8]} 23. Rd1 {[%clk 0:00:24.5]} 23...
g4 {[%clk 0:00:17.1]} 24. Qd2 {[%clk 0:00:19]} 24... Qh6 {[%clk 0:00:11.7]} 25.
Qxh6 {[%clk 0:00:17.5]} 25... Rxh6 {[%clk 0:00:10.8]} 26. Kg2 {[%clk 0:00:12.3]}
26... Kc7 {[%clk 0:00:10.5]} 27. Rd2 {[%clk 0:00:12.1]} 27... f5 {[%clk
0:00:07.9]} 28. Bc2 {[%clk 0:00:11.3]} 28... Nf3 {[%clk 0:00:05.1]} 29. Rd1
{[%clk 0:00:09.1]} 29... Rxh2+ {[%clk 0:00:05.1]} 30. Kf1 {[%clk 0:00:09.5]}
30... Rh1+ {[%clk 0:00:05.5]} 31. Ke2 {[%clk 0:00:09.9]} 31... Rxd1 {[%clk
0:00:05.9]} 32. Kxd1 {[%clk 0:00:10.2]} 32... b5 {[%clk 0:00:05.8]} 33. Bb3
{[%clk 0:00:08.9]} 33... Ng5 {[%clk 0:00:04.3]} 34. Ke2 {[%clk 0:00:08.6]} 34...
Kb6 {[%clk 0:00:04.7]} 35. Ke3 {[%clk 0:00:09.2]} 35... c5 {[%clk 0:00:03]} 36.
Kf4 {[%clk 0:00:08.8]} 36... Ne4 {[%clk 0:00:02.5]} 37. Bxe6 {[%clk 0:00:07.8]}
37... Nxf2 {[%clk 0:00:03]} 38. Bxf5 {[%clk 0:00:07.5]} 38... Kxa6 {[%clk
0:00:03.6]} 39. Bxg4 {[%clk 0:00:06.6]} 39... Nxg4 {[%clk 0:00:03.3]} 40. Kxg4
{[%clk 0:00:07.5]} 40... Ka5 {[%clk 0:00:03.4]} 41. Kf5 {[%clk 0:00:07.5]} 41...
Ka4 {[%clk 0:00:03.9]} 42. Kg6 {[%clk 0:00:08.1]} 42... Kb3 {[%clk 0:00:04.5]}
43. Kxg7 {[%clk 0:00:09]} 43... Kxb2 {[%clk 0:00:04.9]} 44. g4 {[%clk
0:00:09.9]} 44... b4 {[%clk 0:00:05]} 45. g5 {[%clk 0:00:10.8]} 45... bxc3
{[%clk 0:00:05.6]} 46. g6 {[%clk 0:00:10.9]} 46... c2 {[%clk 0:00:06.3]} 47. Kh8
{[%clk 0:00:09.1]} 47... c1=Q {[%clk 0:00:07.2]} 48. g7 {[%clk 0:00:09.2]} 48...
Qh6+ {[%clk 0:00:07.3]} 49. Kg8 {[%clk 0:00:08.7]} 49... Qxg7+ {[%clk
0:00:07.6]} 0-1

[Event "Late-Titled-Tuesday-Blitz-October-10-2023"]
[Site "Chess.com"]
[Date "2023.10.10"]
[Round "7"]
[White "Hirna2005"]
[Black "MathiasWomacka"]
[Result "0-1"]
[WhiteElo "2292"]
[BlackElo "2531"]
[TimeControl "180+1"]
[EndTime "15:12:50 PDT"]
[Termination "MathiasWomacka won on time"]

1. e4 {[%clk 0:03:00.9]} 1... c5 {[%clk 0:02:58.7]} 2. c3 {[%clk 0:03:00.9]}
2... d5 {[%clk 0:02:58.8]} 3. exd5 {[%clk 0:03:00.6]} 3... Qxd5 {[%clk
0:02:59.6]} 4. Nf3 {[%clk 0:03:01]} 4... Nf6 {[%clk 0:02:57.5]} 5. Na3 {[%clk
0:02:59.7]} 5... Bg4 {[%clk 0:02:48.9]} 6. Be2 {[%clk 0:02:56.8]} 6... e6 {[%clk
0:02:44.7]} 7. d4 {[%clk 0:02:45.9]} 7... Be7 {[%clk 0:02:40.9]} 8. Qa4+ {[%clk
0:02:30.8]} 8... Nc6 {[%clk 0:02:35.3]} 9. Nb5 {[%clk 0:02:13.9]} 9... Qd8
{[%clk 0:02:14.1]} 10. Bf4 {[%clk 0:02:11.4]} 10... Nd5 {[%clk 0:02:12.8]} 11.
Bg3 {[%clk 0:02:06.7]} 11... a6 {[%clk 0:01:55.5]} 12. Na3 {[%clk 0:01:26.1]}
12... Bxf3 {[%clk 0:01:40.2]} 13. Bxf3 {[%clk 0:01:23.5]} 13... cxd4 {[%clk
0:01:40.1]} 14. Bxd5 {[%clk 0:00:53.4]} 14... Qxd5 {[%clk 0:01:38.7]} 15. O-O
{[%clk 0:00:53.3]} 15... dxc3 {[%clk 0:01:24]} 16. bxc3 {[%clk 0:00:21.2]} 16...
b5 {[%clk 0:01:18.1]} 17. Qb3 {[%clk 0:00:18.2]} 17... Rd8 {[%clk 0:01:06.4]}
18. c4 {[%clk 0:00:15.7]} 18... bxc4 {[%clk 0:00:52]} 19. Nxc4 {[%clk
0:00:15.9]} 19... O-O {[%clk 0:00:49]} 20. Rfd1 {[%clk 0:00:15.6]} 20... Nd4
{[%clk 0:00:49.3]} 21. Qd3 {[%clk 0:00:13.4]} 21... Nf3+ {[%clk 0:00:38]} 22.
Qxf3 {[%clk 0:00:12.9]} 22... Qxc4 {[%clk 0:00:38.6]} 23. Rxd8 {[%clk
0:00:11.3]} 23... Rxd8 {[%clk 0:00:37.7]} 24. h3 {[%clk 0:00:11.9]} 24... Bf6
{[%clk 0:00:35.8]} 25. Rb1 {[%clk 0:00:10.5]} 25... Qxa2 {[%clk 0:00:32.8]} 26.
Qb7 {[%clk 0:00:10.6]} 26... h6 {[%clk 0:00:29.8]} 27. Rb6 {[%clk 0:00:10.6]}
27... Rd1+ {[%clk 0:00:27.4]} 28. Kh2 {[%clk 0:00:10.4]} 28... Qa1 {[%clk
0:00:27.1]} 29. Bf4 {[%clk 0:00:07.9]} 29... Rh1+ {[%clk 0:00:23.6]} 30. Kg3
{[%clk 0:00:08.1]} 30... Qc3+ {[%clk 0:00:22.7]} 31. Be3 {[%clk 0:00:07.4]}
31... Be5+ {[%clk 0:00:21.7]} 32. Kf3 {[%clk 0:00:07.5]} 32... Rd1 {[%clk
0:00:20.5]} 33. Qa8+ {[%clk 0:00:05]} 33... Kh7 {[%clk 0:00:18.8]} 34. Qe4+
{[%clk 0:00:05.7]} 34... g6 {[%clk 0:00:19.3]} 35. Rxa6 {[%clk 0:00:04.7]} 35...
Rd7 {[%clk 0:00:14.3]} 36. Ra8 {[%clk 0:00:04.2]} 36... Bg7 {[%clk 0:00:14]} 37.
Qf4 {[%clk 0:00:03.6]} 37... Qc6+ {[%clk 0:00:07.6]} 38. Qe4 {[%clk 0:00:03.7]}
38... Qxe4+ {[%clk 0:00:07.2]} 39. Kxe4 {[%clk 0:00:04.2]} 39... f5+ {[%clk
0:00:07.8]} 40. Kf3 {[%clk 0:00:04.3]} 40... e5 {[%clk 0:00:08.7]} 41. Ke2
{[%clk 0:00:03.1]} 41... e4 {[%clk 0:00:09.6]} 42. f3 {[%clk 0:00:02.9]} 42...
exf3+ {[%clk 0:00:09.3]} 43. Kxf3 {[%clk 0:00:03.4]} 43... Re7 {[%clk
0:00:09.8]} 44. Bf4 {[%clk 0:00:03.4]} 44... Rd7 {[%clk 0:00:09.9]} 45. Ra6
{[%clk 0:00:02.6]} 45... g5 {[%clk 0:00:10.8]} 46. Be3 {[%clk 0:00:02.6]} 46...
Be5 {[%clk 0:00:10.8]} 47. Ke2 {[%clk 0:00:02.3]} 47... Kg7 {[%clk 0:00:10.9]}
48. Re6 {[%clk 0:00:02.2]} 48... Bf6 {[%clk 0:00:10.7]} 49. Bc5 {[%clk
0:00:01.7]} 49... Re7 {[%clk 0:00:11.6]} 50. Bxe7 {[%clk 0:00:01.1]} 50... Kf7
{[%clk 0:00:12.5]} 0-1